[Event "Titled Tuesday Blitz August 15 Early 2023"]
[White "Kim, Yoon-Young"]
[Black "Gulkov, Igor A."]
[WhiteFideId "30908779"]
[BlackFideId "4120973"]
[WhiteElo "2768"]
[BlackElo "2418"]
[Result "0-1"]
[Round "1"]
[TimeControl "180+1"]
[Date "2023.08.15"]
[WhiteClock "0:00:00"]
[BlackClock "0:00:15"]
[Board "80"]

1. Nf3 {[%clk 0:02:58]}  Nf6 {[%clk 0:02:59]} 2. c4 {[%clk 0:02:59]}  e6 {[%clk 0:02:58]} 3. g3 {[%clk 0:02:59]}  d5 {[%clk 0:02:58]} 4. Bg2 {[%clk 0:02:57]}  Be7 {[%clk 0:02:56]} 5. O-O {[%clk 0:02:54]}  O-O {[%clk 0:02:56]} 6. d4 {[%clk 0:02:55]}  c6 {[%clk 0:02:55]} 7. Qc2 {[%clk 0:02:56]}  Nbd7 {[%clk 0:02:54]} 8. Nbd2 {[%clk 0:02:56]}  b6 {[%clk 0:02:54]} 9. e4 {[%clk 0:02:57]}  dxc4 {[%clk 0:02:53]} 10. Nxc4 {[%clk 0:02:54]}  Bb7 {[%clk 0:02:52]} 11. Bg5 {[%clk 0:02:26]}  h6 {[%clk 0:02:45]} 12. Bxf6 {[%clk 0:02:24]}  Nxf6 {[%clk 0:02:42]} 13. Rad1 {[%clk 0:02:21]}  Qc7 {[%clk 0:02:39]} 14. Nfe5 {[%clk 0:02:17]}  Rfd8 {[%clk 0:02:33]} 15. a3 {[%clk 0:01:21]}  c5 {[%clk 0:02:32]} 16. dxc5 {[%clk 0:01:21]}  Qxc5 {[%clk 0:02:27]} 17. b4 {[%clk 0:01:21]}  Qc7 {[%clk 0:02:25]} 18. b5 {[%clk 0:01:02]}  Bxa3 {[%clk 0:02:08]} 19. Rxd8+ {[%clk 0:00:40]}  Rxd8 {[%clk 0:02:06]} 20. Nc6 {[%clk 0:00:40]}  Bc5 {[%clk 0:02:00]} 21. Nxd8 {[%clk 0:00:33]}  Qxd8 {[%clk 0:01:55]} 22. e5 {[%clk 0:00:28]}  Bxg2 {[%clk 0:01:49]} 23. Kxg2 {[%clk 0:00:26]}  Qd5+ {[%clk 0:01:49]} 24. Kg1 {[%clk 0:00:23]}  Ng4 {[%clk 0:01:48]} 25. Qe2 {[%clk 0:00:17]}  Nxf2 {[%clk 0:01:39]} 26. Rxf2 {[%clk 0:00:16]}  Bxf2+ {[%clk 0:01:39]} 27. Kxf2 {[%clk 0:00:17]}  Qxb5 {[%clk 0:01:38]} 28. Nd6 {[%clk 0:00:18]}  Qc5+ {[%clk 0:01:13]} 29. Kg2 {[%clk 0:00:14]}  f6 {[%clk 0:01:11]} 30. Nc4 {[%clk 0:00:06]}  Qd5+ {[%clk 0:01:09]} 31. Kh3 {[%clk 0:00:05]}  fxe5 {[%clk 0:01:08]} 32. Nxe5 {[%clk 0:00:06]}  b5 {[%clk 0:01:05]} 33. Qe3 {[%clk 0:00:03]}  a5 {[%clk 0:01:03]} 34. g4 {[%clk 0:00:04]}  b4 {[%clk 0:01:01]} 35. Ng6 {[%clk 0:00:04]}  Kf7 {[%clk 0:00:56]} 36. Ne5+ {[%clk 0:00:04]}  Kf6 {[%clk 0:00:53]} 37. Nd3 {[%clk 0:00:04]}  e5 {[%clk 0:00:50]} 38. Nc5 {[%clk 0:00:04]}  Qd4 {[%clk 0:00:44]} 39. Ne4+ {[%clk 0:00:04]}  Ke6 {[%clk 0:00:41]} 40. Qf3 {[%clk 0:00:05]}  a4 {[%clk 0:00:31]} 41. Kh4 {[%clk 0:00:05]}  b3 {[%clk 0:00:27]} 42. Qf5+ {[%clk 0:00:03]}  Ke7 {[%clk 0:00:27]} 43. g5 {[%clk 0:00:03]}  hxg5+ {[%clk 0:00:26]} 44. Qxg5+ {[%clk 0:00:04]}  Kf7 {[%clk 0:00:26]} 45. Qf5+ {[%clk 0:00:05]}  Ke7 {[%clk 0:00:26]} 46. Kg5 {[%clk 0:00:05]}  b2 {[%clk 0:00:25]} 47. Kg6 {[%clk 0:00:02]}  a3 {[%clk 0:00:24]} 48. Qf7+ {[%clk 0:00:02]}  Kd8 {[%clk 0:00:24]} 49. Qf8+ {[%clk 0:00:03]}  Kc7 {[%clk 0:00:24]} 50. Qe7+ {[%clk 0:00:04]}  Kc6 {[%clk 0:00:23]} 51. Qe6+ {[%clk 0:00:04]}  Kb5 {[%clk 0:00:22]} 52. Nd6+ {[%clk 0:00:05]}  Kc5 {[%clk 0:00:21]} 53. Nb7+ {[%clk 0:00:05]}  Kb5 {[%clk 0:00:20]} 54. Nd6+ {[%clk 0:00:05]}  Ka4 {[%clk 0:00:19]} 55. Qd7+ {[%clk 0:00:05]}  Kb3 {[%clk 0:00:19]} 56. Qb5+ {[%clk 0:00:06]}  Ka2 {[%clk 0:00:18]} 57. Nc4 {[%clk 0:00:00]}  b1=Q+ {[%clk 0:00:15]} 0-1


[Site "https://www.chess.com"]

[Event "Titled Tuesday Blitz August 15 Early 2023"]
[White "Lobanov, Sergei"]
[Black "Rom, Jasper"]
[WhiteFideId "24183750"]
[BlackFideId "2023733"]
[WhiteElo "2763"]
[BlackElo "2416"]
[Result "1-0"]
[Round "1"]
[TimeControl "180+1"]
[Date "2023.08.15"]
[WhiteClock "0:00:53"]
[BlackClock "0:00:00"]
[Board "82"]

1. d4 {[%clk 0:02:59]}  d5 {[%clk 0:02:52]} 2. c4 {[%clk 0:02:59]}  e6 {[%clk 0:02:52]} 3. Nf3 {[%clk 0:02:58]}  c6 {[%clk 0:02:51]} 4. e3 {[%clk 0:02:57]}  Nf6 {[%clk 0:02:40]} 5. Bd3 {[%clk 0:02:56]}  dxc4 {[%clk 0:02:39]} 6. Bxc4 {[%clk 0:02:56]}  b5 {[%clk 0:02:39]} 7. Bd3 {[%clk 0:02:55]}  a6 {[%clk 0:02:39]} 8. a4 {[%clk 0:02:51]}  Bb7 {[%clk 0:02:36]} 9. O-O {[%clk 0:02:50]}  Nbd7 {[%clk 0:02:34]} 10. e4 {[%clk 0:02:37]}  c5 {[%clk 0:02:24]} 11. axb5 {[%clk 0:02:34]}  axb5 {[%clk 0:02:20]} 12. Rxa8 {[%clk 0:02:34]}  Qxa8 {[%clk 0:02:19]} 13. Bxb5 {[%clk 0:02:33]}  Bxe4 {[%clk 0:02:11]} 14. Nbd2 {[%clk 0:02:03]}  Bc6 {[%clk 0:02:08]} 15. Bxc6 {[%clk 0:01:59]}  Qxc6 {[%clk 0:02:08]} 16. Ne5 {[%clk 0:01:59]}  Nxe5 {[%clk 0:02:05]} 17. dxe5 {[%clk 0:01:58]}  Nd5 {[%clk 0:02:05]} 18. Nc4 {[%clk 0:01:44]}  Be7 {[%clk 0:01:56]} 19. Qg4 {[%clk 0:01:44]}  Kf8 {[%clk 0:01:34]} 20. Bd2 {[%clk 0:01:33]}  h5 {[%clk 0:01:33]} 21. Qf3 {[%clk 0:01:30]}  h4 {[%clk 0:01:21]} 22. Ra1 {[%clk 0:01:25]}  g6 {[%clk 0:01:03]} 23. h3 {[%clk 0:01:18]}  Kg7 {[%clk 0:01:00]} 24. Ra7 {[%clk 0:01:00]}  Ra8 {[%clk 0:00:58]} 25. Rxe7 {[%clk 0:00:55]}  Nxe7 {[%clk 0:00:49]} 26. Qf6+ {[%clk 0:00:54]}  Kf8 {[%clk 0:00:00]} 27. Nd6 {[%clk 0:00:53]} 1-0


[Site "https://www.chess.com"]

[Event "Titled Tuesday Blitz August 15 Early 2023"]
[White "Llanos, Guillermo"]
[Black "Srihari L R"]
[WhiteFideId "100358"]
[BlackFideId "46617116"]
[WhiteElo "2415"]
[BlackElo "2763"]
[Result "0-1"]
[Round "1"]
[TimeControl "180+1"]
[Date "2023.08.15"]
[WhiteClock "0:00:04"]
[BlackClock "0:00:26"]
[Board "83"]

1. b3 {[%clk 0:02:53]}  Nf6 {[%clk 0:02:56]} 2. Bb2 {[%clk 0:02:51]}  d6 {[%clk 0:02:56]} 3. d4 {[%clk 0:02:50]}  g6 {[%clk 0:02:55]} 4. g3 {[%clk 0:02:49]}  Bg7 {[%clk 0:02:53]} 5. Nf3 {[%clk 0:02:50]}  O-O {[%clk 0:02:52]} 6. Bg2 {[%clk 0:02:50]}  Nc6 {[%clk 0:02:51]} 7. O-O {[%clk 0:02:49]}  e5 {[%clk 0:02:51]} 8. dxe5 {[%clk 0:02:46]}  Ng4 {[%clk 0:02:51]} 9. c4 {[%clk 0:02:43]}  Ngxe5 {[%clk 0:02:49]} 10. Nc3 {[%clk 0:02:43]}  Re8 {[%clk 0:02:41]} 11. Qd2 {[%clk 0:02:40]}  Bg4 {[%clk 0:02:40]} 12. h3 {[%clk 0:02:30]}  Bxf3 {[%clk 0:02:38]} 13. exf3 {[%clk 0:02:29]}  Nd4 {[%clk 0:02:36]} 14. Qd1 {[%clk 0:02:20]}  Nec6 {[%clk 0:02:25]} 15. f4 {[%clk 0:02:17]}  Qd7 {[%clk 0:02:21]} 16. Kh2 {[%clk 0:02:04]}  Re6 {[%clk 0:02:20]} 17. Qd2 {[%clk 0:02:03]}  Rae8 {[%clk 0:02:18]} 18. Rae1 {[%clk 0:01:46]}  Nb4 {[%clk 0:01:55]} 19. Rxe6 {[%clk 0:01:36]}  Qxe6 {[%clk 0:01:54]} 20. Nd5 {[%clk 0:01:28]}  Nxd5 {[%clk 0:01:54]} 21. cxd5 {[%clk 0:01:15]}  Qe2 {[%clk 0:01:50]} 22. Qxe2 {[%clk 0:01:05]}  Rxe2 {[%clk 0:01:49]} 23. Bc1 {[%clk 0:00:36]}  Rxa2 {[%clk 0:01:47]} 24. b4 {[%clk 0:00:35]}  Nc2 {[%clk 0:01:43]} 25. Bd2 {[%clk 0:00:33]}  Bd4 {[%clk 0:01:34]} 26. Kg1 {[%clk 0:00:28]}  Rb2 {[%clk 0:01:24]} 27. Rc1 {[%clk 0:00:25]}  Bb6 {[%clk 0:01:19]} 28. Bc3 {[%clk 0:00:20]}  Ra2 {[%clk 0:01:19]} 29. Kf1 {[%clk 0:00:19]}  Na3 {[%clk 0:01:14]} 30. Be1 {[%clk 0:00:18]}  f5 {[%clk 0:01:12]} 31. g4 {[%clk 0:00:17]}  Kf7 {[%clk 0:01:11]} 32. gxf5 {[%clk 0:00:15]}  gxf5 {[%clk 0:01:12]} 33. Bf3 {[%clk 0:00:14]}  Nc2 {[%clk 0:01:10]} 34. Bc3 {[%clk 0:00:13]}  Nd4 {[%clk 0:01:07]} 35. Bxd4 {[%clk 0:00:13]}  Bxd4 {[%clk 0:01:07]} 36. Rxc7+ {[%clk 0:00:13]}  Kg6 {[%clk 0:01:08]} 37. Be2 {[%clk 0:00:13]}  Rb2 {[%clk 0:00:29]} 38. Rxb7 {[%clk 0:00:12]}  a5 {[%clk 0:00:29]} 39. b5 {[%clk 0:00:12]}  a4 {[%clk 0:00:28]} 40. Rb8 {[%clk 0:00:11]}  a3 {[%clk 0:00:28]} 41. Ra8 {[%clk 0:00:11]}  a2 {[%clk 0:00:28]} 42. Bd3 {[%clk 0:00:08]}  Rb1+ {[%clk 0:00:25]} 43. Bxb1 {[%clk 0:00:04]}  axb1=Q+ {[%clk 0:00:26]} 0-1


[Site "https://www.chess.com"]

[Event "Titled Tuesday Blitz August 15 Early 2023"]
[White "Materia, Marco"]
[Black "jimmy-schlumpf"]
[WhiteFideId "45150451"]
[WhiteElo "2762"]
[BlackElo "2415"]
[Result "1-0"]
[Round "1"]
[TimeControl "180+1"]
[Date "2023.08.15"]
[WhiteClock "0:00:33"]
[BlackClock "0:00:38"]
[Board "84"]

1. d4 {[%clk 0:03:00]}  Nf6 {[%clk 0:02:59]} 2. c4 {[%clk 0:03:01]}  g6 {[%clk 0:02:59]} 3. Nc3 {[%clk 0:03:01]}  d5 {[%clk 0:03:00]} 4. cxd5 {[%clk 0:03:00]}  Nxd5 {[%clk 0:03:00]} 5. e4 {[%clk 0:03:00]}  Nxc3 {[%clk 0:03:00]} 6. bxc3 {[%clk 0:03:00]}  Bg7 {[%clk 0:03:00]} 7. Bc4 {[%clk 0:03:00]}  c5 {[%clk 0:03:01]} 8. Ne2 {[%clk 0:03:01]}  Nc6 {[%clk 0:03:01]} 9. Be3 {[%clk 0:03:00]}  O-O {[%clk 0:03:01]} 10. Rc1 {[%clk 0:03:00]}  e6 {[%clk 0:02:58]} 11. O-O {[%clk 0:03:00]}  b6 {[%clk 0:02:55]} 12. Qd2 {[%clk 0:02:51]}  Bb7 {[%clk 0:02:53]} 13. Rfd1 {[%clk 0:02:51]}  Qe7 {[%clk 0:02:45]} 14. Bg5 {[%clk 0:02:46]}  Qc7 {[%clk 0:02:41]} 15. f3 {[%clk 0:02:31]}  Rac8 {[%clk 0:02:35]} 16. Qe3 {[%clk 0:02:29]}  Rfe8 {[%clk 0:02:27]} 17. h4 {[%clk 0:02:26]}  Na5 {[%clk 0:02:18]} 18. Bb5 {[%clk 0:02:24]}  Bc6 {[%clk 0:02:15]} 19. Ba6 {[%clk 0:02:21]}  Bb7 {[%clk 0:02:15]} 20. Bd3 {[%clk 0:02:21]}  Qc6 {[%clk 0:02:07]} 21. h5 {[%clk 0:02:18]}  Qa4 {[%clk 0:02:07]} 22. h6 {[%clk 0:02:12]}  Bf8 {[%clk 0:02:05]} 23. Bf6 {[%clk 0:02:08]}  Nc4 {[%clk 0:01:59]} 24. Qf4 {[%clk 0:01:56]}  Nb2 {[%clk 0:01:56]} 25. Bc2 {[%clk 0:01:51]}  Qa6 {[%clk 0:01:47]} 26. Re1 {[%clk 0:01:34]}  cxd4 {[%clk 0:01:42]} 27. Bxd4 {[%clk 0:01:29]}  Qa5 {[%clk 0:01:18]} 28. e5 {[%clk 0:01:02]}  Ba6 {[%clk 0:01:04]} 29. Ng3 {[%clk 0:00:58]}  Nd3 {[%clk 0:01:03]} 30. Bxd3 {[%clk 0:00:58]}  Bxd3 {[%clk 0:01:03]} 31. Re3 {[%clk 0:00:50]}  Bc4 {[%clk 0:00:57]} 32. Ne4 {[%clk 0:00:49]}  Red8 {[%clk 0:00:54]} 33. Nf6+ {[%clk 0:00:46]}  Kh8 {[%clk 0:00:53]} 34. Ng4 {[%clk 0:00:34]}  Rc7 {[%clk 0:00:38]} 35. Qf6+ {[%clk 0:00:33]} 1-0


[Site "https://www.chess.com"]

[Event "Titled Tuesday Blitz August 15 Early 2023"]
[White "Karavade, Eesha"]
[Black "Pulpan, Jakub"]
[WhiteFideId "5012600"]
[BlackFideId "302759"]
[WhiteElo "2414"]
[BlackElo "2761"]
[Result "1-0"]
[Round "1"]
[TimeControl "180+1"]
[Date "2023.08.15"]
[WhiteClock "0:00:21"]
[BlackClock "0:00:12"]
[Board "85"]

1. d4 {[%clk 0:03:00]}  a6 {[%clk 0:02:46]} 2. e4 {[%clk 0:03:00]}  c6 {[%clk 0:02:45]} 3. Nf3 {[%clk 0:02:59]}  d5 {[%clk 0:02:45]} 4. e5 {[%clk 0:02:59]}  Bf5 {[%clk 0:02:43]} 5. c3 {[%clk 0:02:53]}  e6 {[%clk 0:02:42]} 6. Be2 {[%clk 0:02:53]}  c5 {[%clk 0:02:36]} 7. O-O {[%clk 0:02:53]}  Nc6 {[%clk 0:02:34]} 8. h3 {[%clk 0:02:48]}  Nge7 {[%clk 0:02:30]} 9. Be3 {[%clk 0:02:44]}  h6 {[%clk 0:02:30]} 10. Nbd2 {[%clk 0:02:43]}  Bh7 {[%clk 0:02:27]} 11. dxc5 {[%clk 0:02:35]}  Nf5 {[%clk 0:02:27]} 12. Bd4 {[%clk 0:02:34]}  Be7 {[%clk 0:02:27]} 13. b4 {[%clk 0:02:32]}  O-O {[%clk 0:02:27]} 14. a4 {[%clk 0:02:30]}  f6 {[%clk 0:02:26]} 15. b5 {[%clk 0:02:21]}  axb5 {[%clk 0:02:26]} 16. axb5 {[%clk 0:02:21]}  Rxa1 {[%clk 0:02:27]} 17. Qxa1 {[%clk 0:02:21]}  Ncxd4 {[%clk 0:02:28]} 18. cxd4 {[%clk 0:02:20]}  Qc7 {[%clk 0:02:21]} 19. b6 {[%clk 0:02:05]}  Qb8 {[%clk 0:02:20]} 20. Qb2 {[%clk 0:02:04]}  fxe5 {[%clk 0:02:05]} 21. Nxe5 {[%clk 0:02:03]}  Qd8 {[%clk 0:02:03]} 22. Ra1 {[%clk 0:02:00]}  Bf6 {[%clk 0:02:03]} 23. Ndf3 {[%clk 0:02:00]}  Nh4 {[%clk 0:02:01]} 24. Nxh4 {[%clk 0:01:49]}  Bxe5 {[%clk 0:01:45]} 25. Nf3 {[%clk 0:01:43]}  Bb8 {[%clk 0:01:44]} 26. Rc1 {[%clk 0:01:30]}  Be4 {[%clk 0:01:44]} 27. c6 {[%clk 0:01:28]}  bxc6 {[%clk 0:01:44]} 28. Rxc6 {[%clk 0:01:27]}  Qf6 {[%clk 0:01:41]} 29. b7 {[%clk 0:01:26]}  Kh7 {[%clk 0:01:21]} 30. Rc8 {[%clk 0:01:25]}  Qf4 {[%clk 0:01:21]} 31. Rxf8 {[%clk 0:01:22]}  Qxf8 {[%clk 0:01:21]} 32. Ne5 {[%clk 0:01:21]}  Qf4 {[%clk 0:01:18]} 33. Bf3 {[%clk 0:01:16]}  Bxf3 {[%clk 0:01:11]} 34. Nxf3 {[%clk 0:01:13]}  Qe4 {[%clk 0:01:10]} 35. Qc1 {[%clk 0:01:05]}  Kg6 {[%clk 0:01:02]} 36. Ne5+ {[%clk 0:00:50]}  Kh7 {[%clk 0:01:02]} 37. Nd7 {[%clk 0:00:41]}  Bf4 {[%clk 0:01:02]} 38. Qa1 {[%clk 0:00:35]}  Qc2 {[%clk 0:00:50]} 39. b8=Q {[%clk 0:00:35]}  Bxb8 {[%clk 0:00:51]} 40. Nxb8 {[%clk 0:00:35]}  e5 {[%clk 0:00:52]} 41. dxe5 {[%clk 0:00:34]}  d4 {[%clk 0:00:52]} 42. Qxd4 {[%clk 0:00:34]}  Qb1+ {[%clk 0:00:52]} 43. Kh2 {[%clk 0:00:34]}  Qxb8 {[%clk 0:00:53]} 44. Qe4+ {[%clk 0:00:34]}  Kg8 {[%clk 0:00:53]} 45. g3 {[%clk 0:00:35]}  Kf8 {[%clk 0:00:50]} 46. Qf5+ {[%clk 0:00:33]}  Ke7 {[%clk 0:00:50]} 47. e6 {[%clk 0:00:29]}  Qg8 {[%clk 0:00:50]} 48. Qc5+ {[%clk 0:00:25]}  Kf6 {[%clk 0:00:50]} 49. Qd4+ {[%clk 0:00:24]}  Kg6 {[%clk 0:00:50]} 50. Qd7 {[%clk 0:00:23]}  Qf8 {[%clk 0:00:46]} 51. Kg1 {[%clk 0:00:20]}  Qf5 {[%clk 0:00:47]} 52. Qe8+ {[%clk 0:00:19]}  Kh7 {[%clk 0:00:22]} 53. e7 {[%clk 0:00:20]}  Qb1+ {[%clk 0:00:21]} 54. Kg2 {[%clk 0:00:20]}  Qb7+ {[%clk 0:00:15]} 55. Kh2 {[%clk 0:00:20]}  Qf3 {[%clk 0:00:12]} 56. Qf8 {[%clk 0:00:21]} 1-0


[Site "https://www.chess.com"]

[Event "Titled Tuesday Blitz August 15 Early 2023"]
[White "Bueno, Alfeu Junior Varela"]
[Black "Jaracz, Pawel"]
[WhiteFideId "2108879"]
[BlackFideId "1102222"]
[WhiteElo "2410"]
[BlackElo "2753"]
[Result "1-0"]
[Round "1"]
[TimeControl "180+1"]
[Date "2023.08.15"]
[WhiteClock "0:00:04"]
[BlackClock "0:00:00"]
[Board "87"]

1. e4 {[%clk 0:02:57]}  c5 {[%clk 0:02:59]} 2. Nc3 {[%clk 0:02:58]}  a6 {[%clk 0:02:57]} 3. g3 {[%clk 0:02:57]}  b5 {[%clk 0:02:57]} 4. Bg2 {[%clk 0:02:58]}  Bb7 {[%clk 0:02:57]} 5. f4 {[%clk 0:02:55]}  e6 {[%clk 0:02:57]} 6. d3 {[%clk 0:02:54]}  Nf6 {[%clk 0:02:55]} 7. Qe2 {[%clk 0:02:52]}  d5 {[%clk 0:02:50]} 8. exd5 {[%clk 0:02:25]}  Nxd5 {[%clk 0:02:49]} 9. Nxd5 {[%clk 0:02:15]}  Bxd5 {[%clk 0:02:49]} 10. f5 {[%clk 0:02:15]}  Bxg2 {[%clk 0:02:46]} 11. Qxg2 {[%clk 0:02:16]}  Qd5 {[%clk 0:02:47]} 12. Qxd5 {[%clk 0:02:16]}  exd5 {[%clk 0:02:47]} 13. Nf3 {[%clk 0:02:17]}  Nc6 {[%clk 0:02:47]} 14. O-O {[%clk 0:02:15]}  Be7 {[%clk 0:02:44]} 15. Re1 {[%clk 0:02:11]}  O-O-O {[%clk 0:02:32]} 16. Bg5 {[%clk 0:01:58]}  Bxg5 {[%clk 0:02:20]} 17. Nxg5 {[%clk 0:01:59]}  Rd7 {[%clk 0:02:20]} 18. c3 {[%clk 0:01:54]}  h6 {[%clk 0:02:18]} 19. Nf3 {[%clk 0:01:53]}  d4 {[%clk 0:02:13]} 20. Ne5 {[%clk 0:01:53]}  Nxe5 {[%clk 0:02:02]} 21. Rxe5 {[%clk 0:01:54]}  Rc7 {[%clk 0:01:42]} 22. Rc1 {[%clk 0:01:53]}  f6 {[%clk 0:01:32]} 23. Re6 {[%clk 0:01:39]}  Rd8 {[%clk 0:01:25]} 24. Rxa6 {[%clk 0:01:36]}  Kb7 {[%clk 0:01:26]} 25. Re6 {[%clk 0:01:32]}  Rd5 {[%clk 0:01:18]} 26. g4 {[%clk 0:01:27]}  c4 {[%clk 0:01:05]} 27. dxc4 {[%clk 0:01:07]}  bxc4 {[%clk 0:00:59]} 28. Re4 {[%clk 0:00:48]}  dxc3 {[%clk 0:00:37]} 29. Rxc3 {[%clk 0:00:47]}  Rd1+ {[%clk 0:00:36]} 30. Kf2 {[%clk 0:00:47]}  Rd2+ {[%clk 0:00:37]} 31. Re2 {[%clk 0:00:48]}  Rd4 {[%clk 0:00:35]} 32. h3 {[%clk 0:00:42]}  h5 {[%clk 0:00:35]} 33. Ke3 {[%clk 0:00:36]}  Rcd7 {[%clk 0:00:32]} 34. Rec2 {[%clk 0:00:22]}  hxg4 {[%clk 0:00:15]} 35. hxg4 {[%clk 0:00:22]}  Rxg4 {[%clk 0:00:14]} 36. Rxc4 {[%clk 0:00:23]}  Rg3+ {[%clk 0:00:14]} 37. Kf4 {[%clk 0:00:22]}  Rg1 {[%clk 0:00:10]} 38. Rb4+ {[%clk 0:00:20]}  Ka6 {[%clk 0:00:10]} 39. Rc3 {[%clk 0:00:21]}  Rf1+ {[%clk 0:00:08]} 40. Kg3 {[%clk 0:00:18]}  Rxf5 {[%clk 0:00:05]} 41. Rc8 {[%clk 0:00:18]}  Ka7 {[%clk 0:00:04]} 42. Rc3 {[%clk 0:00:14]}  Ra5 {[%clk 0:00:04]} 43. a3 {[%clk 0:00:11]}  g5 {[%clk 0:00:04]} 44. Rc6 {[%clk 0:00:10]}  f5 {[%clk 0:00:03]} 45. Rg6 {[%clk 0:00:10]}  g4 {[%clk 0:00:02]} 46. Rg5 {[%clk 0:00:09]}  Rc5 {[%clk 0:00:02]} 47. Kf4 {[%clk 0:00:07]}  Rd1 {[%clk 0:00:02]} 48. Rg7+ {[%clk 0:00:04]}  Ka6 {[%clk 0:00:00]} 49. Rg8 {[%clk 0:00:04]} 1-0


[Site "https://www.chess.com"]

[Event "Titled Tuesday Blitz August 15 Early 2023"]
[White "Kosteniuk, Alexandra"]
[Black "Lorenzo De La Riva, Lazaro"]
[WhiteFideId "4128125"]
[BlackFideId "2268809"]
[WhiteElo "2740"]
[BlackElo "2402"]
[Result "1-0"]
[Round "1"]
[TimeControl "180+1"]
[Date "2023.08.15"]
[WhiteClock "0:00:15"]
[BlackClock "0:00:00"]
[Board "92"]

1. Nf3 {[%clk 0:03:00]}  Nf6 {[%clk 0:02:59]} 2. g3 {[%clk 0:03:00]}  d5 {[%clk 0:02:57]} 3. Bg2 {[%clk 0:03:00]}  e6 {[%clk 0:02:56]} 4. O-O {[%clk 0:03:00]}  h6 {[%clk 0:02:55]} 5. c4 {[%clk 0:03:00]}  Bd6 {[%clk 0:02:53]} 6. d4 {[%clk 0:02:57]}  O-O {[%clk 0:02:51]} 7. c5 {[%clk 0:02:56]}  Be7 {[%clk 0:02:50]} 8. Nc3 {[%clk 0:02:50]}  b6 {[%clk 0:02:40]} 9. Be3 {[%clk 0:02:49]}  a5 {[%clk 0:02:31]} 10. cxb6 {[%clk 0:02:43]}  cxb6 {[%clk 0:02:30]} 11. Qd2 {[%clk 0:02:37]}  Nbd7 {[%clk 0:02:17]} 12. h3 {[%clk 0:02:21]}  Ba6 {[%clk 0:02:17]} 13. Rfc1 {[%clk 0:02:21]}  Bb4 {[%clk 0:01:53]} 14. Qd1 {[%clk 0:02:13]}  Rc8 {[%clk 0:01:48]} 15. Nd2 {[%clk 0:02:00]}  Bd6 {[%clk 0:01:33]} 16. Nf1 {[%clk 0:01:56]}  b5 {[%clk 0:01:28]} 17. Bf4 {[%clk 0:01:43]}  Be7 {[%clk 0:01:20]} 18. g4 {[%clk 0:01:38]}  Nb6 {[%clk 0:01:07]} 19. e3 {[%clk 0:01:32]}  Qd7 {[%clk 0:01:06]} 20. Ng3 {[%clk 0:01:31]}  b4 {[%clk 0:01:06]} 21. Nce2 {[%clk 0:01:31]}  Nc4 {[%clk 0:01:06]} 22. b3 {[%clk 0:01:29]}  Na3 {[%clk 0:01:05]} 23. Bf3 {[%clk 0:01:08]}  Rxc1 {[%clk 0:00:44]} 24. Rxc1 {[%clk 0:01:09]}  Rc8 {[%clk 0:00:43]} 25. Kh2 {[%clk 0:01:09]}  Rc6 {[%clk 0:00:40]} 26. Be5 {[%clk 0:01:04]}  Qc8 {[%clk 0:00:34]} 27. Rxc6 {[%clk 0:00:50]}  Qxc6 {[%clk 0:00:35]} 28. Nh5 {[%clk 0:00:50]}  Nxh5 {[%clk 0:00:34]} 29. gxh5 {[%clk 0:00:51]}  f6 {[%clk 0:00:34]} 30. Bg3 {[%clk 0:00:50]}  Qc2 {[%clk 0:00:33]} 31. Qxc2 {[%clk 0:00:49]}  Nxc2 {[%clk 0:00:34]} 32. Nf4 {[%clk 0:00:49]}  Kf7 {[%clk 0:00:33]} 33. Bg4 {[%clk 0:00:47]}  f5 {[%clk 0:00:30]} 34. Bd1 {[%clk 0:00:47]}  Ne1 {[%clk 0:00:25]} 35. Ng6 {[%clk 0:00:34]}  Nd3 {[%clk 0:00:14]} 36. Be2 {[%clk 0:00:33]}  Nc5 {[%clk 0:00:14]} 37. dxc5 {[%clk 0:00:30]}  Bxe2 {[%clk 0:00:13]} 38. c6 {[%clk 0:00:30]}  Ba6 {[%clk 0:00:12]} 39. Bc7 {[%clk 0:00:30]}  a4 {[%clk 0:00:11]} 40. bxa4 {[%clk 0:00:29]}  Bf6 {[%clk 0:00:11]} 41. Bd6 {[%clk 0:00:26]}  Bc3 {[%clk 0:00:09]} 42. Kg2 {[%clk 0:00:17]}  Ke8 {[%clk 0:00:09]} 43. Nf4 {[%clk 0:00:16]}  Bc8 {[%clk 0:00:08]} 44. Nd3 {[%clk 0:00:15]}  Ba6 {[%clk 0:00:00]} 45. Nc5 {[%clk 0:00:15]} 1-0


[Site "https://www.chess.com"]

[Event "Titled Tuesday Blitz August 15 Early 2023"]
[White "Namitbir Singh Walia"]
[Black "Gritsenko, Nikolai"]
[WhiteFideId "35071068"]
[BlackFideId "14112493"]
[WhiteElo "2402"]
[BlackElo "2737"]
[Result "0-1"]
[Round "1"]
[TimeControl "180+1"]
[Date "2023.08.15"]
[WhiteClock "0:00:02"]
[BlackClock "0:00:35"]
[Board "93"]

1. e4 {[%clk 0:03:00]}  d6 {[%clk 0:02:58]} 2. d4 {[%clk 0:02:59]}  Nf6 {[%clk 0:02:58]} 3. Nc3 {[%clk 0:02:59]}  g6 {[%clk 0:02:59]} 4. Nf3 {[%clk 0:02:58]}  Bg7 {[%clk 0:02:58]} 5. Bf4 {[%clk 0:02:59]}  Bg4 {[%clk 0:02:53]} 6. Qd2 {[%clk 0:02:58]}  Bxf3 {[%clk 0:02:50]} 7. gxf3 {[%clk 0:02:59]}  Nc6 {[%clk 0:02:50]} 8. O-O-O {[%clk 0:02:41]}  e5 {[%clk 0:02:49]} 9. dxe5 {[%clk 0:02:41]}  dxe5 {[%clk 0:02:41]} 10. Qxd8+ {[%clk 0:02:33]}  Rxd8 {[%clk 0:02:40]} 11. Rxd8+ {[%clk 0:02:34]}  Kxd8 {[%clk 0:02:40]} 12. Be3 {[%clk 0:02:29]}  Nd4 {[%clk 0:02:26]} 13. Be2 {[%clk 0:01:52]}  Nxe2+ {[%clk 0:02:16]} 14. Nxe2 {[%clk 0:01:51]}  Kc8 {[%clk 0:02:14]} 15. Rd1 {[%clk 0:01:51]}  a6 {[%clk 0:02:05]} 16. c4 {[%clk 0:01:42]}  Rd8 {[%clk 0:01:48]} 17. Rxd8+ {[%clk 0:01:37]}  Kxd8 {[%clk 0:01:48]} 18. Nc3 {[%clk 0:01:37]}  c6 {[%clk 0:01:32]} 19. b4 {[%clk 0:01:22]}  Nd7 {[%clk 0:01:25]} 20. Kc2 {[%clk 0:01:16]}  Bf8 {[%clk 0:01:23]} 21. Kb3 {[%clk 0:01:17]}  Be7 {[%clk 0:01:18]} 22. Na4 {[%clk 0:00:51]}  Kc7 {[%clk 0:01:05]} 23. Nc5 {[%clk 0:00:35]}  Bxc5 {[%clk 0:01:02]} 24. Bxc5 {[%clk 0:00:35]}  b5 {[%clk 0:00:52]} 25. Be3 {[%clk 0:00:32]}  Kd8 {[%clk 0:00:51]} 26. a4 {[%clk 0:00:31]}  Ke7 {[%clk 0:00:48]} 27. axb5 {[%clk 0:00:20]}  axb5 {[%clk 0:00:46]} 28. c5 {[%clk 0:00:16]}  Ke6 {[%clk 0:00:42]} 29. Kc3 {[%clk 0:00:15]}  f5 {[%clk 0:00:41]} 30. Bg5 {[%clk 0:00:15]}  Nf6 {[%clk 0:00:39]} 31. Bxf6 {[%clk 0:00:06]}  Kxf6 {[%clk 0:00:38]} 32. h4 {[%clk 0:00:06]}  fxe4 {[%clk 0:00:35]} 33. fxe4 {[%clk 0:00:06]}  g5 {[%clk 0:00:35]} 34. hxg5+ {[%clk 0:00:04]}  Kxg5 {[%clk 0:00:35]} 35. Kd3 {[%clk 0:00:02]}  Kf4 {[%clk 0:00:35]} 0-1


[Site "https://www.chess.com"]